fUST/lending_fUST_20241002
["ID","MTS","AMOUNT","RATE_DAILY","PERIOD"]
[339679365,1727854240069,-500.0,0.00016317,2]
[339679366,1727854240083,-523.10802295,0.00016317,2]
[339679367,1727854240094,-500.0,0.00016317,2]
[339679368,1727854240106,-500.0,0.00016317,2]
[339679369,1727854240121,-500.0,0.00016317,2]
[339679370,1727854240132,-500.0,0.00016317,2]
[339679371,1727854240145,-500.0,0.00016317,2]
[339679372,1727854240155,-500.0,0.00016317,2]
[339679373,1727854240166,-500.0,0.00016317,2]
[339679374,1727854240175,-500.0,0.00016317,2]
[339679375,1727854240188,-500.0,0.00016317,2]
[339679376,1727854240201,-500.0,0.00016317,2]
[339679377,1727854240213,-500.0,0.00016317,2]
[339679378,1727854240225,-500.0,0.00016317,2]
[339679379,1727854240235,-321.71691179,0.00016317,2]
[339679380,1727854240245,-500.0,0.00016317,2]
[339679381,1727854240255,-500.0,0.00016317,2]
[339679382,1727854240265,-500.0,0.00016317,2]
[339679383,1727854240275,-500.0,0.00016317,2]
[339679384,1727854240284,-500.0,0.00016317,2]
[339679385,1727854240294,-500.0,0.00016317,2]
[339679386,1727854240304,-500.0,0.00016317,2]
[339679387,1727854240313,-500.0,0.00016317,2]
[339679388,1727854240325,-500.0,0.00016317,2]
[339679389,1727854240335,-500.0,0.00016317,2]
[339679390,1727854240345,-573.08,0.00016317,2]
[339679391,1727854240354,-642.71,0.00016317,2]
[339679392,1727854240364,-845.61,0.00016317,2]
[339679393,1727854240374,-500.0,0.00016317,2]
[339679394,1727854240384,-500.0,0.00016317,2]
[339679395,1727854240393,-500.0,0.00016317,2]
[339679396,1727854240402,-500.0,0.00016317,2]
[339679397,1727854240415,-500.0,0.00016317,2]
[339679398,1727854240427,-500.0,0.00016317,2]
[339679399,1727854240438,-500.0,0.00016317,2]
[339679400,1727854240450,-13860.66782641,0.00016318,2]
[339679401,1727854240809,-65395.18869068,0.00016318,2]
[339679402,1727854240820,-1119.72364898,0.00016338,2]
[339679403,1727854240830,-185.55517169,0.00016358,2]
[339679404,1727854240839,-263.90657141,0.00016358,2]
[339679405,1727854240849,-500.0,0.00016358,2]
[339679406,1727854240859,-500.0,0.00016358,2]
[339679407,1727854240870,-474.50818444,0.00016358,2]
[339679408,1727854240882,-195456.685369,0.00016359,2]
[339679409,1727854240893,-123587.830234,0.00016359,2]
[339679410,1727854240902,-75368.7116168,0.0001636,2]
[339679411,1727854240990,-2382.43036614,0.0001636,2]
[339679412,1727854241002,-19977.20070136,0.0001636,2]
[339679413,1727854241011,-61793.9151168,0.0001636,2]
[339679414,1727854241020,-158.061537,0.00016361,2]
[339679415,1727854241029,-158.061537,0.00016361,2]
[339679416,1727854241039,-151.0,0.00016361,2]
[339679417,1727854241049,-151.0,0.00016361,2]
[339679418,1727854241058,-7319.67001128,0.00016367,2]
[339679468,1727854246139,-500.0,0.00016132,2]
[339679469,1727854246149,-500.0,0.00016132,2]
[339679470,1727854246160,-756.92,0.00016217,2]
[339679471,1727854246171,-301.61135892,0.0001626,2]
[339679472,1727854246182,-198.38864108,0.0001626,2]
[339679473,1727854246192,-500.0,0.0001626,2]
[339679474,1727854246202,-500.0,0.00016317,2]
[339679475,1727854246211,-4722.28369447,0.00016367,2]
[339679479,1727854471977,1000.0,0.00021,60]
[339679482,1727854541512,155.0,0.00010201,2]
[339679483,1727854710733,379.7813276,0.00021917,120]
[339679485,1727854749059,500.0,0.0002101,120]
[339679486,1727855154420,193.58064669,0.00021,60]
[339679510,1727855432138,-545.953647,0.00014305,2]
[339679511,1727855432149,-1070.2980286,0.00014405,2]
[339679513,1727855432159,-352.047305,0.00014406,2]
[339679515,1727855432169,-4226.07628244,0.00014434,2]
[339679539,1727855438158,-1251.88654626,0.00014434,2]
[339679540,1727855438167,-851.46,0.00014532,2]
[339679541,1727855438177,-303.8063647,0.00014735,2]
[339679542,1727855438187,-221.104974,0.00014824,2]
[339679543,1727855438196,-221.104974,0.00014865,2]
[339679544,1727855438207,-221.104974,0.00014905,2]
[339679545,1727855438217,-221.104974,0.00014946,2]
[339679546,1727855438227,-300.0,0.00014957,2]
[339679547,1727855438238,-735.07,0.00014958,2]
[339679548,1727855438248,-221.104974,0.00014987,2]
[339679550,1727855438258,-545.953647,0.0001499,2]
[339679551,1727855438268,-221.104974,0.00015027,2]
[339679552,1727855438277,-500.0,0.00015058,2]
[339679553,1727855438287,-221.104974,0.00015068,2]
[339679554,1727855438299,-221.104974,0.00015109,2]
[339679555,1727855438310,-221.104974,0.00015149,2]
[339679556,1727855438321,-221.104974,0.0001519,2]
[339679557,1727855438330,-221.104974,0.00015231,2]
[339679558,1727855438339,-221.104974,0.00015271,2]
[339679559,1727855438348,-221.104974,0.00015312,2]
[339679560,1727855438359,-221.104974,0.00015353,2]
[339679561,1727855438370,-221.104974,0.00015393,2]
[339679562,1727855438382,-221.104974,0.00015434,2]
[339679563,1727855438392,-221.104974,0.00015475,2]
[339679564,1727855438402,-1000.0,0.000155,2]
[339679565,1727855438412,-221.104974,0.00015515,2]
[339679566,1727855438425,-221.104974,0.00015556,2]
[339679567,1727855438436,-221.104974,0.00015597,2]
[339679568,1727855438446,-465.00035709,0.00015637,2]
[339679569,1727855438456,-545.953647,0.00015675,2]
[339679570,1727855438466,-306.0,0.00015726,2]
[339679571,1727855438476,-153.0,0.00015726,2]
[339679572,1727855438485,-371.724375,0.0001589,2]
[339679573,1727855438496,-1000.0,0.00016,13]
[339679574,1727855438506,-2000.0,0.00016,2]
[339679575,1727855438516,-3000.0,0.00016,2]
[339679576,1727855438527,-622.58594139,0.00016,2]
[339679577,1727855438538,-500.0,0.00016,2]
[339679578,1727855438550,-500.0,0.00016,2]
[339679579,1727855438562,-600.25,0.00016,2]
[339679580,1727855438572,-500.0,0.00016,2]
[339679581,1727855438581,-1000.0,0.00016,2]
[339679582,1727855438590,-253.4074903,0.00016002,2]
[339679583,1727855438600,-1296.1114461,0.00016002,2]
[339679584,1727855438612,-253.4074903,0.00016007,2]
[339679585,1727855438623,-291.5211297,0.00016011,2]
[339679586,1727855438632,-500.0,0.00016011,2]
[339679587,1727855438641,-500.0,0.00016011,2]
[339679588,1727855438652,-196.50362316,0.00016011,2]
[339679597,1727855440118,-303.49637684,0.00016011,2]
[339679598,1727855440127,-500.0,0.00016011,2]
[339679599,1727855440137,-523.93,0.00016011,2]
[339679600,1727855440147,-652.78,0.00016011,2]
[339679601,1727855440157,-253.4074903,0.00016011,2]
[339679602,1727855440166,-500.0,0.00016011,2]
[339679603,1727855440175,-914.54,0.00016011,2]
[339679604,1727855440356,-1235.56,0.00016011,2]
[339679605,1727855440368,-1624.34,0.00016011,2]
[339679606,1727855440379,-500.0,0.00016011,2]
[339679607,1727855440389,-5500.24492514,0.00016012,2]
[339679608,1727855440398,-500.0,0.00016091,2]
[339679609,1727855440408,-500.0,0.00016091,2]
[339679610,1727855440418,-493.36884533,0.00016091,2]
[339679611,1727855440427,-257.90883172,0.00016091,2]
[339679612,1727855440437,-500.0,0.00016091,2]
[339679613,1727855440447,-500.0,0.00016091,2]
[339679614,1727855440457,-500.0,0.00016091,2]
[339679615,1727855440466,-500.0,0.00016091,2]
[339679616,1727855440476,-500.0,0.00016091,2]
[339679617,1727855440487,-500.0,0.00016091,2]
[339679618,1727855440498,-500.0,0.00016091,2]
[339679619,1727855440509,-500.0,0.00016091,2]
[339679620,1727855440519,-500.0,0.00016091,2]
[339679621,1727855440528,-500.0,0.00016091,2]
[339679622,1727855440538,-264.04585043,0.00016091,2]
[339679623,1727855440549,-500.0,0.00016091,2]
[339679624,1727855440559,-500.0,0.00016091,2]
[339679625,1727855440571,-500.0,0.00016091,2]
[339679626,1727855440582,-500.0,0.00016091,2]
[339679627,1727855440591,-500.0,0.00016091,2]
[339679628,1727855440602,-500.0,0.00016091,2]
[339679629,1727855440611,-500.0,0.00016091,2]
[339679630,1727855440621,-500.0,0.00016091,2]
[339679631,1727855440630,-500.0,0.00016091,2]
[339679632,1727855440640,-500.0,0.00016091,2]
[339679633,1727855440651,-500.0,0.00016091,2]
[339679634,1727855440664,-500.0,0.00016091,2]
[339679635,1727855440673,-500.0,0.00016091,2]
[339679636,1727855440683,-500.0,0.00016091,2]
[339679637,1727855440692,-500.0,0.00016091,2]
[339679638,1727855440702,-500.0,0.00016091,2]
[339679639,1727855440712,-500.0,0.00016091,2]
[339679640,1727855440722,-500.0,0.00016091,2]
[339679641,1727855440731,-500.0,0.00016091,2]
[339679642,1727855440740,-500.0,0.00016091,2]
[339679643,1727855440751,-500.0,0.00016091,2]
[339679644,1727855440761,-500.0,0.00016091,2]
[339679645,1727855440772,-500.0,0.00016091,2]
[339679646,1727855440783,-250.23949049,0.00016091,2]
[339679647,1727855440793,-500.0,0.00016091,2]
[339679648,1727855440804,-500.0,0.00016091,2]
[339679649,1727855440813,-500.0,0.00016091,2]
[339679650,1727855440824,-500.0,0.00016091,2]
[339679651,1727855440834,-500.0,0.00016091,2]
[339679652,1727855440846,-500.0,0.00016091,2]
[339679653,1727855440858,-500.0,0.00016091,2]
[339679654,1727855440869,-500.0,0.00016091,2]
[339679655,1727855440879,-500.0,0.00016091,2]
[339679656,1727855440888,-500.0,0.00016091,2]
[339679657,1727855440898,-500.0,0.00016091,2]
[339679658,1727855440907,-500.0,0.00016091,2]
[339679659,1727855440917,-97790.159008,0.00016092,2]
[339679660,1727855440927,-391160.636032,0.00016092,2]
[339679661,1727855440938,-150.112233,0.000161,2]
[339679662,1727855440950,-150.112233,0.000161,2]
[339679663,1727855440961,-150.112233,0.000161,2]
[339679664,1727855440973,-86601.32389,0.00016102,2]
[339679665,1727855440983,-2799.28766709,0.00016102,2]
[339679666,1727855440993,-3734.12640594,0.00016102,2]
[339679667,1727855441005,-173202.64778,0.00016102,2]
[339679668,1727855441015,-173202.64778,0.00016111,2]
[339679669,1727855441025,-3000.0,0.00016111,2]
[339679670,1727855441035,-3000.0,0.00016111,2]
[339679671,1727855441045,-3000.0,0.00016111,2]
[339679672,1727855441055,-3000.0,0.00016111,2]
[339679673,1727855441064,-3000.0,0.00016111,2]
[339679674,1727855441075,-3000.0,0.00016111,2]
[339679675,1727855441085,-2982.54291741,0.00016111,2]
[339679676,1727855441096,-151.0,0.00016111,2]
[339679677,1727855441106,-151.0,0.00016111,2]
[339679678,1727855441117,-151.0,0.00016111,2]
[339679679,1727855441129,-151.0,0.00016111,2]
[339679680,1727855441140,-151.0,0.00016111,2]
[339679681,1727855441150,-615.93,0.00016112,2]
[339679682,1727855441161,-500.0,0.00016112,2]
[339679683,1727855441171,-500.0,0.00016112,2]
[339679684,1727855441182,-500.0,0.00016112,2]
[339679685,1727855441193,-500.0,0.00016112,2]
[339679686,1727855441204,-500.0,0.00016112,2]
[339679687,1727855441214,-500.0,0.00016112,2]
[339679688,1727855441224,-500.0,0.00016112,2]
[339679689,1727855441235,-500.0,0.00016112,2]
[339679690,1727855441245,-500.0,0.00016112,2]
[339679691,1727855441256,-500.0,0.00016112,2]
[339679692,1727855441267,-500.0,0.00016112,2]
[339679693,1727855441277,-500.0,0.00016112,2]
[339679694,1727855441289,-500.0,0.00016112,2]
[339679695,1727855441300,-500.0,0.00016112,2]
[339679696,1727855441311,-500.0,0.00016112,2]
[339679697,1727855441329,-500.0,0.00016112,2]
[339679698,1727855441341,-500.0,0.00016112,2]
[339679699,1727855441352,-337.76624805,0.00016112,2]
[339679700,1727855441364,-500.0,0.00016112,2]
[339679701,1727855441376,-500.0,0.00016112,2]
[339679702,1727855441386,-500.0,0.00016112,2]
[339679703,1727855441396,-500.0,0.00016112,2]
[339679704,1727855441407,-500.0,0.00016112,2]
[339679705,1727855441417,-932.84,0.00016112,2]
[339679706,1727855441428,-500.0,0.00016112,2]
[339679707,1727855441439,-807.35,0.00016112,2]
[339679708,1727855441450,-500.0,0.00016112,2]
[339679709,1727855441460,-790.7,0.00016112,2]
[339679710,1727855441470,-500.0,0.00016112,2]
[339679711,1727855441481,-535.6332977,0.00016112,2]
[339679712,1727855441492,-500.0,0.00016112,2]
[339679713,1727855441502,-749.43,0.00016112,2]
[339679714,1727855441512,-968.11,0.00016112,2]
[339679715,1727855441523,-500.0,0.00016112,2]
[339679716,1727855441535,-500.0,0.00016112,2]
[339679717,1727855441547,-4658.42,0.00016112,2]
[339679718,1727855441558,-500.0,0.00016112,2]
[339679719,1727855441573,-500.0,0.00016112,2]
[339679720,1727855441584,-500.0,0.00016112,2]
[339679721,1727855441594,-771.29,0.00016112,2]
[339679722,1727855441608,-500.0,0.00016112,2]
[339679723,1727855441619,-500.0,0.00016112,2]
[339679724,1727855441631,-556.39,0.00016112,2]
[339679725,1727855441641,-150.0,0.00016112,2]
[339679726,1727855441653,-500.0,0.00016112,2]
[339679727,1727855441666,-500.0,0.00016112,2]
[339679728,1727855441677,-500.0,0.00016112,2]
[339679729,1727855441687,-1069.08,0.00016112,2]
[339679730,1727855441698,-500.0,0.00016112,2]
[339679731,1727855441711,-500.0,0.00016112,2]
[339679732,1727855441723,-1051.48,0.00016112,2]
[339679733,1727855441733,-500.0,0.00016112,2]
[339679734,1727855441745,-500.0,0.00016112,2]
[339679735,1727855441756,-500.0,0.00016112,2]
[339679736,1727855441766,-500.0,0.00016112,2]
[339679737,1727855441775,-500.0,0.00016112,2]
[339679738,1727855441788,-500.0,0.00016112,2]
[339679739,1727855441799,-500.0,0.00016112,2]
[339679740,1727855441811,-500.0,0.00016112,2]
[339679741,1727855441823,-500.0,0.00016112,2]
[339679742,1727855441833,-626.63,0.00016112,2]
[339679743,1727855441844,-1324.72,0.00016112,2]
[339679744,1727855441856,-500.0,0.00016112,2]
[339679745,1727855441865,-500.0,0.00016112,2]
[339679746,1727855441877,-500.0,0.00016112,2]
[339679747,1727855441888,-500.0,0.00016112,2]
[339679748,1727855441898,-500.0,0.00016112,2]
[339679749,1727855441906,-266.24858195,0.00016112,2]
[339679750,1727855441916,-514.63,0.00016112,2]
[339679751,1727855441926,-500.0,0.00016112,2]
[339679752,1727855441935,-500.0,0.00016112,2]
[339679753,1727855441945,-454.81105792,0.00016112,2]
[339679754,1727855441955,-318.70541739,0.00016112,2]
[339679755,1727855441964,-500.0,0.00016112,2]
[339679756,1727855441974,-2598.28,0.00016112,2]
[339679757,1727855441984,-500.0,0.00016112,2]
[339679758,1727855441994,-500.0,0.00016112,2]
[339679759,1727855442004,-500.0,0.00016112,2]
[339679760,1727855442013,-537.89909569,0.00016112,2]
[339679761,1727855442023,-500.0,0.00016112,2]
[339679762,1727855442032,-500.0,0.00016112,2]
[339679763,1727855442042,-500.0,0.00016112,2]
[339679764,1727855442052,-500.0,0.00016112,2]
[339679765,1727855442061,-500.0,0.00016112,2]
[339679766,1727855442071,-500.0,0.00016112,2]
[339679767,1727855442080,-500.0,0.00016112,2]
[339679768,1727855442091,-500.0,0.00016112,2]
[339679769,1727855442101,-2293.74,0.00016112,2]
[339679770,1727855442111,-500.0,0.0001612,2]
[339679771,1727855442120,-1416.37,0.0001612,2]
[339679772,1727855442130,-1206.59,0.0001612,2]
[339679773,1727855442140,-500.0,0.0001612,2]
[339679774,1727855442150,-500.0,0.0001612,2]
[339679775,1727855442160,-25101.98,0.0001612,2]
[339679776,1727855442172,-3798.46,0.0001612,2]
[339679777,1727855442182,-1141.41,0.0001612,2]
[339679778,1727855442191,-500.0,0.0001612,2]
[339679779,1727855442202,-500.0,0.0001612,2]
[339679780,1727855442211,-500.0,0.0001612,2]
[339679781,1727855442221,-500.0,0.0001612,2]
[339679782,1727855442231,-151.0,0.0001612,2]
[339679783,1727855442241,-151.0,0.0001612,2]
[339679784,1727855442252,-500.0,0.0001612,2]
[339679785,1727855442263,-151.0,0.0001612,2]
[339679786,1727855442274,-151.0,0.0001612,2]
[339679787,1727855442285,-500.0,0.0001612,2]
[339679788,1727855442297,-895.62,0.00016121,2]
[339679789,1727855442309,-500.0,0.00016121,2]
[339679790,1727855442320,-500.0,0.00016121,2]
[339679791,1727855442332,-500.0,0.00016121,2]
[339679792,1727855442343,-500.0,0.00016121,2]
[339679793,1727855442354,-500.0,0.00016121,2]
[339679794,1727855442363,-500.0,0.00016121,2]
[339679795,1727855442374,-500.0,0.00016121,2]
[339679796,1727855442384,-199.96,0.00016121,2]
[339679797,1727855442394,-500.0,0.00016121,2]
[339679798,1727855442403,-500.0,0.00016121,2]
[339679799,1727855442414,-596.53,0.00016121,2]
[339679800,1727855442424,-500.33086191,0.00016121,2]
[339679801,1727855442434,-500.0,0.00016121,2]
[339679802,1727855442445,-500.0,0.00016121,2]
[339679803,1727855442455,-500.0,0.00016121,2]
[339679804,1727855442466,-500.0,0.00016121,2]
[339679805,1727855442478,-500.0,0.00016121,2]
[339679806,1727855442489,-500.0,0.00016121,2]
[339679807,1727855442500,-500.0,0.00016121,2]
[339679808,1727855442511,-500.0,0.00016121,2]
[339679809,1727855442523,-500.0,0.00016121,2]
[339679810,1727855442534,-500.0,0.00016121,2]
[339679811,1727855442546,-500.88240206,0.00016121,2]
[339679812,1727855442558,-580.02342166,0.00016121,2]
[339679813,1727855442569,-500.0,0.00016121,2]
[339679814,1727855442579,-500.0,0.00016121,2]
[339679815,1727855442590,-500.0,0.00016121,2]
[339679816,1727855442601,-541.83,0.00016121,2]
[339679817,1727855442610,-734.19,0.00016121,2]
[339679818,1727855442621,-500.0,0.00016121,2]
[339679819,1727855442631,-500.0,0.00016121,2]
[339679820,1727855442640,-500.0,0.00016121,2]
[339679821,1727855442650,-500.0,0.00016121,2]
[339679822,1727855442664,-500.0,0.00016121,2]
[339679823,1727855442674,-500.0,0.00016121,2]
[339679824,1727855442685,-500.0,0.00016121,2]
[339679825,1727855442695,-500.0,0.00016121,2]
[339679826,1727855442706,-500.0,0.00016121,2]
[339679827,1727855442716,-586.69,0.00016121,2]
[339679828,1727855442726,-1096.9,0.00016121,2]
[339679830,1727855442736,-500.0,0.00016121,2]
[339679831,1727855442746,-500.0,0.00016121,2]
[339679833,1727855442757,-500.0,0.00016121,2]
[339679836,1727855442768,-500.0,0.00016121,2]
[339679839,1727855442779,-500.0,0.00016121,2]
[339679841,1727855442790,-500.0,0.00016121,2]
[339679842,1727855442802,-740.57,0.00016121,2]
[339679844,1727855442812,-3198.46,0.00016121,2]
[339679846,1727855442824,-500.0,0.00016121,2]
[339679847,1727855442836,-500.0,0.00016121,2]
[339679848,1727855442848,-500.0,0.00016121,2]
[339679849,1727855442858,-500.0,0.00016121,2]
[339679850,1727855442868,-500.0,0.00016121,2]
[339679851,1727855442880,-500.0,0.00016121,2]
[339679852,1727855442890,-500.0,0.00016121,2]
[339679853,1727855442900,-500.0,0.00016121,2]
[339679855,1727855442910,-500.0,0.00016121,2]
[339679857,1727855442920,-907.2,0.00016121,2]
[339679858,1727855442930,-500.0,0.00016121,2]
[339679859,1727855442940,-500.0,0.00016121,2]
[339679860,1727855442950,-181.49658348,0.00016121,2]
[339679861,1727855442959,-500.0,0.00016121,2]
[339679862,1727855442969,-500.0,0.00016121,2]
[339679863,1727855442979,-610.61,0.00016121,2]
[339679864,1727855442990,-500.0,0.00016121,2]
[339679865,1727855443000,-1349.79,0.00016121,2]
[339679866,1727855443010,-3019.09190408,0.00016121,2]
[339679868,1727855443026,-269.00809592,0.00016121,2]
[339679870,1727855443036,-500.0,0.00016121,2]
[339679871,1727855443046,-500.0,0.00016121,2]
[339679872,1727855443056,-544.76,0.00016121,2]
[339679873,1727855443066,-500.0,0.00016121,2]
[339679874,1727855443077,-593.02,0.00016121,2]
[339679876,1727855443086,-506.2573766,0.00016121,2]
[339679877,1727855443096,-500.0,0.00016121,2]
[339679878,1727855443244,-151.0,0.00016121,2]
[339679879,1727855443254,-500.0,0.00016121,2]
[339679880,1727855443264,-500.0,0.00016121,2]
[339679881,1727855443274,-500.0,0.00016121,2]
[339679882,1727855443283,-500.0,0.00016121,2]
[339679883,1727855443293,-500.0,0.00016121,2]
[339679884,1727855443303,-500.0,0.00016121,2]
[339679885,1727855443315,-500.0,0.00016121,2]
[339679886,1727855443327,-500.0,0.00016121,2]
[339679887,1727855443339,-500.0,0.00016121,2]
[339679888,1727855443351,-500.0,0.00016121,2]
[339679889,1727855443363,-151.0,0.00016121,2]
[339679890,1727855443375,-505.83877912,0.00016121,2]
[339679891,1727855443388,-500.0,0.00016121,2]
[339679892,1727855443398,-2499.43,0.00016121,2]
[339679893,1727855443408,-256.339794,0.00016121,2]
[339679894,1727855443421,-712.6,0.00016121,2]
[339679895,1727855443433,-151.0,0.00016121,2]
[339679896,1727855443444,-500.0,0.00016121,2]
[339679897,1727855443455,-151.0,0.00016121,2]
[339679898,1727855443467,-500.0,0.00016121,2]
[339679899,1727855443478,-500.0,0.00016121,2]
[339679901,1727855443489,-500.0,0.00016121,2]
[339679902,1727855443499,-500.0,0.00016121,2]
[339679903,1727855443510,-151.0,0.00016121,2]
[339679904,1727855443521,-151.0,0.00016121,2]
[339679905,1727855443532,-500.0,0.00016121,2]
[339679907,1727855443544,-222.206912,0.00016121,2]
[339679908,1727855443555,-500.0,0.00016121,2]
[339679909,1727855443566,-500.0,0.00016121,2]
[339679910,1727855443579,-563.38,0.00016121,2]
[339679911,1727855443592,-500.0,0.00016121,2]
[339679912,1727855443603,-500.0,0.00016121,2]
[339679913,1727855443615,-500.0,0.00016121,2]
[339679914,1727855443626,-971.8,0.00016121,2]
[339679915,1727855443637,-500.0,0.00016121,2]
[339679916,1727855443649,-500.0,0.00016121,2]
[339679917,1727855443660,-500.0,0.00016121,2]
[339679918,1727855443674,-539.43708571,0.00016121,2]
[339679919,1727855443685,-500.0,0.00016121,2]
[339679920,1727855443696,-500.0,0.00016121,2]
[339679921,1727855443708,-641.64,0.00016121,2]
[339679922,1727855443720,-955.41,0.00016121,2]
[339679923,1727855443732,-500.0,0.00016121,2]
[339679924,1727855443748,-482.89297263,0.00016121,2]
[339679925,1727855443759,-500.0,0.00016121,2]
[339679926,1727855443771,-939.97,0.00016121,2]
[339679927,1727855443781,-151.0,0.00016122,2]
[339679928,1727855443791,-180.382836,0.00016122,2]
[339679929,1727855443802,-151.0,0.00016122,2]
[339679930,1727855443811,-153.689862,0.00016122,2]
[339679931,1727855443820,-151.0,0.00016122,2]
[339679932,1727855443830,-151.0,0.00016122,2]
[339679933,1727855443842,-151.0,0.00016122,2]
[339679934,1727855443856,-151.0,0.00016122,2]
[339679935,1727855443868,-151.0,0.00016122,2]
[339679936,1727855443878,-151.0,0.00016122,2]
[339679937,1727855443891,-151.0,0.00016122,2]
[339679938,1727855443902,-151.0,0.00016122,2]
[339679939,1727855443913,-151.0,0.00016122,2]
[339679940,1727855443925,-151.0,0.00016122,2]
[339679941,1727855443937,-151.0,0.00016122,2]
[339679942,1727855443947,-500.0,0.0001613,2]
[339679943,1727855443958,-990.58,0.0001613,2]
[339679944,1727855443968,-500.0,0.0001613,2]
[339679945,1727855443979,-500.0,0.0001613,2]
[339679946,1727855443989,-500.0,0.0001613,2]
[339679947,1727855444000,-500.0,0.00016131,2]
[339679948,1727855444011,-500.0,0.00016131,2]
[339679949,1727855444023,-515.49770384,0.00016131,2]
[339679950,1727855444033,-500.0,0.00016131,2]
[339679951,1727855444044,-500.0,0.00016131,2]
[339679952,1727855444055,-500.0,0.00016131,2]
[339679953,1727855444066,-500.0,0.00016131,2]
[339679954,1727855444077,-500.0,0.00016131,2]
[339679955,1727855444087,-500.0,0.00016131,2]
[339679956,1727855444098,-500.0,0.00016131,2]
[339679957,1727855444107,-684.49,0.00016131,2]
[339679958,1727855444117,-500.0,0.00016131,2]
[339679959,1727855444127,-978.65,0.00016131,2]
[339679960,1727855444138,-500.0,0.00016131,2]
[339679961,1727855444148,-500.0,0.00016131,2]
[339679962,1727855444158,-500.0,0.00016131,2]
[339679963,1727855444168,-500.0,0.00016131,2]
[339679964,1727855444178,-500.0,0.00016131,2]
[339679965,1727855444188,-4315.43,0.00016131,2]
[339679966,1727855444198,-1020.38,0.00016131,2]
[339679967,1727855444207,-923.37,0.00016131,2]
[339679968,1727855444217,-500.0,0.00016131,2]
[339679969,1727855444227,-368.43815012,0.00016131,2]
[339679970,1727855444236,-500.0,0.00016131,2]
[339679971,1727855444246,-500.0,0.00016131,2]
[339679972,1727855444257,-500.0,0.00016131,2]
[339679973,1727855444267,-500.0,0.00016131,2]
[339679974,1727855444277,-500.0,0.00016131,2]
[339679975,1727855444288,-131.3367433,0.00016131,2]
[339679976,1727855444865,-368.6632567,0.00016131,2]
[339679977,1727855444876,-500.0,0.00016131,2]
[339679978,1727855444886,-908.19,0.00016131,2]
[339679979,1727855444895,-432.65221893,0.00016131,2]
[339679989,1727856091289,200.0,0.0001935,120]
[339680076,1727856640334,-1451.6874172,0.00013061,2]
[339680077,1727856640344,-166.806832,0.00013492,2]
[339680078,1727856640355,-166.806832,0.00013539,2]
[339680079,1727856640364,-166.806832,0.00013585,2]
[339680080,1727856640373,-166.806832,0.00013632,2]
[339680081,1727856640383,-166.806832,0.00013679,2]
[339680082,1727856640392,-260.585163,0.00013699,2]
[339680083,1727856640402,-627.4561835,0.00013699,2]
[339680084,1727856640417,-227.003684,0.00013699,2]
[339680085,1727856640428,-3000.0,0.00013707,2]
[339680086,1727856640438,-166.806832,0.00013726,2]
[339680087,1727856640449,-166.806832,0.00013773,2]